fUSD/lending_fUSD_20240423
["ID","MTS","AMOUNT","RATE_DAILY","PERIOD"]
[323272763,1713861059230,-500.0,0.00012439,2]
[323272764,1713861059239,-500.0,0.00012439,2]
[323272765,1713861059248,-1010.88,0.00012439,2]
[323272766,1713861059257,-500.0,0.00012439,2]
[323272767,1713861059267,-500.0,0.00012439,2]
[323272768,1713861059276,-415.01750535,0.00012439,2]
[323272769,1713861059285,-904.08,0.00012439,2]
[323272770,1713861059294,-596.85073709,0.00012439,2]
[323272771,1713861059303,-508.52497573,0.00012439,2]
[323272772,1713861059312,-958.87,0.00012439,2]
[323272773,1713861059321,-500.0,0.00012439,2]
[323272774,1713861059331,-55478.85,0.00012439,2]
[323272775,1713861059340,-500.0,0.00012439,2]
[323272776,1713861059350,-3707.64,0.00012439,2]
[323272777,1713861059359,-500.0,0.00012439,2]
[323272778,1713861059368,-184.19814263,0.00012439,2]
[323272779,1713861059377,-500.0,0.00012439,2]
[323272780,1713861059386,-1023.66,0.00012439,2]
[323272781,1713861059398,-500.0,0.00012439,2]
[323272782,1713861059408,-500.0,0.00012439,2]
[323272783,1713861059417,-234.92923062,0.00012439,2]
[323272784,1713861059426,-539.77,0.00012439,2]
[323272785,1713861059435,-606.67,0.00012439,2]
[323272786,1713861059445,-10005.87,0.00012439,2]
[323272787,1713861059454,-515.41187997,0.00012439,2]
[323272788,1713861059463,-500.0,0.00012439,2]
[323272789,1713861059473,-500.0,0.00012439,2]
[323272790,1713861059483,-2989.84,0.00012439,2]
[323272791,1713861059492,-570.93,0.00012439,2]
[323272792,1713861059501,-604.52,0.00012439,2]
[323272793,1713861059510,-500.0,0.00012439,2]
[323272794,1713861059520,-500.0,0.00012439,2]
[323272795,1713861059529,-3572.69,0.00012439,2]
[323272796,1713861059538,-880.49,0.00012439,2]
[323272797,1713861059547,-500.0,0.00012439,2]
[323272798,1713861059556,-500.0,0.00012439,2]
[323272799,1713861059565,-3507.07,0.00012439,2]
[323272800,1713861059574,-500.0,0.00012439,2]
[323272801,1713861059583,-909.32,0.00012439,2]
[323272802,1713861059593,-558.39,0.00012439,2]
[323272803,1713861059604,-1635.83,0.00012439,2]
[323272804,1713861059616,-500.0,0.00012439,2]
[323272805,1713861059626,-500.0,0.00012439,2]
[323272806,1713861059634,-537.46363967,0.00012439,2]
[323272807,1713861059644,-2223.06,0.00012439,2]
[323272808,1713861059653,-1042.52,0.00012439,2]
[323272809,1713861059662,-602.01,0.00012439,2]
[323272810,1713861059672,-500.0,0.00012439,2]
[323272811,1713861059682,-500.0,0.00012439,2]
[323272812,1713861059691,-530.49,0.00012439,2]
[323272813,1713861059701,-1439.41,0.00012439,2]
[323272814,1713861059710,-500.0,0.00012439,2]
[323272815,1713861059719,-511.29757663,0.00012439,2]
[323272816,1713861059728,-705.6,0.00012439,2]
[323272817,1713861059737,-500.0,0.00012439,2]
[323272818,1713861059747,-500.0,0.00012439,2]
[323272819,1713861059756,-500.0,0.00012439,2]
[323272820,1713861059765,-619.67,0.00012439,2]
[323272821,1713861059775,-500.0,0.00012439,2]
[323272822,1713861059785,-740.07,0.00012439,2]
[323272823,1713861059794,-500.0,0.00012439,2]
[323272824,1713861059804,-500.0,0.00012439,2]
[323272825,1713861059814,-500.0,0.00012439,2]
[323272826,1713861059824,-853.76,0.00012439,2]
[323272827,1713861059833,-500.0,0.00012439,2]
[323272828,1713861059842,-210.93418923,0.00012439,2]
[323272829,1713861059855,-711.0,0.00012439,2]
[323272830,1713861059864,-500.0,0.00012439,2]
[323272831,1713861059874,-500.0,0.00012439,2]
[323272832,1713861059883,-546.42,0.00012439,2]
[323272833,1713861059893,-500.0,0.00012439,2]
[323272834,1713861059902,-500.0,0.00012439,2]
[323272835,1713861059912,-524.07505202,0.00012439,2]
[323272836,1713861059921,-500.0,0.00012439,2]
[323272837,1713861059931,-11370.26,0.00012439,2]
[323272838,1713861059940,-500.0,0.00012439,2]
[323272839,1713861059950,-574.23,0.00012439,2]
[323272840,1713861059960,-2247.28,0.00012439,2]
[323272841,1713861059970,-500.0,0.00012439,2]
[323272842,1713861059979,-1693.0,0.00012439,2]
[323272843,1713861059988,-500.0,0.00012439,2]
[323272844,1713861059997,-500.0,0.00012439,2]
[323272845,1713861060006,-4166.0,0.00012439,2]
[323272846,1713861060016,-500.0,0.00012439,2]
[323272847,1713861060024,-2151.28,0.00012439,2]
[323272848,1713861060034,-573.88188215,0.00012439,2]
[323272849,1713861060051,-500.0,0.00012439,2]
[323272850,1713861060064,-500.0,0.00012439,2]
[323272851,1713861060073,-500.0,0.00012439,2]
[323272852,1713861060083,-662.37,0.00012439,2]
[323272853,1713861060092,-500.0,0.00012439,2]
[323272854,1713861060103,-1926.21,0.00012439,2]
[323272855,1713861060112,-500.0,0.00012439,2]
[323272856,1713861060121,-305.80859914,0.00012439,2]
[323272857,1713861060130,-1336.63,0.00012439,2]
[323272858,1713861060139,-500.0,0.00012439,2]
[323272859,1713861060149,-500.0,0.00012439,2]
[323272860,1713861060158,-2611.25,0.00012439,2]
[323272861,1713861060166,-500.0,0.00012439,2]
[323272862,1713861060176,-500.0,0.00012439,2]
[323272863,1713861060185,-554.36,0.00012439,2]
[323272864,1713861060194,-500.0,0.00012439,2]
[323272865,1713861060204,-500.0,0.00012439,2]
[323272866,1713861060213,-500.0,0.00012439,2]
[323272867,1713861060222,-1645.79,0.00012439,2]
[323272868,1713861060231,-579.93,0.00012439,2]
[323272869,1713861060273,-500.0,0.00012439,2]
[323272870,1713861060282,-500.0,0.00012439,2]
[323272871,1713861060291,-500.0,0.00012439,2]
[323272872,1713861060300,-1095.5,0.00012439,2]
[323272873,1713861060310,-500.0,0.00012439,2]
[323272874,1713861060319,-299.45114458,0.00012439,2]
[323272875,1713861061373,-500.0,0.00011889,2]
[323272876,1713861061383,-500.0,0.00011889,2]
[323272877,1713861061395,-72.90740948,0.00011889,2]
[323272878,1713861061500,-17000.76407544,0.00011889,2]
[323272879,1713861061532,-612.85511888,0.00011889,2]
[323272880,1713861061569,-262.64704504,0.00011889,2]
[323272881,1713861061581,-787.48102394,0.00011889,2]
[323272882,1713861061649,605.14,0.00011047,2]
[323272883,1713861062202,155.0,0.00010947,2]
[323272884,1713861067298,586.50860375,0.00011193,2]
[323272885,1713861069268,200.0,0.00011469,2]
[323272886,1713861075257,150.0,0.00011446,2]
[323272887,1713861157561,500.0,0.00011237,2]
[323272888,1713861157594,1119.5,0.00011237,2]
[323272889,1713861250589,176.31,0.00011006,2]
[323272890,1713861257650,348.49,0.00011006,2]
[323272891,1713861334196,250.0,0.00010985,2]
[323272892,1713861342547,158.05660954,0.00011458,2]
[323272893,1713861354997,158.77,0.00011053,2]
[323272894,1713861355200,158.77,0.00011341,2]
[323272895,1713861358862,1979.24,0.00010952,2]
[323272896,1713861424751,200.0,0.00010874,2]
[323272897,1713861508694,164.21,0.00010891,2]
[323272898,1713861531519,515.88,0.00010874,2]
[323272899,1713861531568,466.31,8.956e-05,2]
[323272900,1713861531893,466.31,0.0001122,2]
[323272901,1713861538630,23900.0,0.00010874,2]
[323272902,1713861602079,420.48,0.00010944,2]
[323272903,1713861607175,278.47,0.00010857,2]
[323272904,1713861647130,500.0,0.00010834,2]
[323272905,1713861648556,746.0,0.00010834,2]
[323272906,1713861671229,930.0,0.000202,30]
[323272907,1713861823511,158.77,0.00010924,2]
[323272911,1713862023627,419.67,8.855e-05,2]
[323272912,1713862023977,419.67,0.00011119,2]
[323272934,1713862063174,587.29,0.00010773,2]
[323272935,1713862142455,6109.33,0.00010765,2]
[323272941,1713862202559,195.03,0.00010765,2]
[323272961,1713862232018,-316.0,0.00011505,2]
[323272963,1713862232028,-223.30023625,0.00011506,2]
[323272964,1713862232040,-2857.59000604,0.00011506,2]
[323272965,1713862232049,-537.58418051,0.00011507,2]
[323272966,1713862232058,-150.0,0.00011509,2]
[323272967,1713862232067,-150.0,0.00011509,2]
[323272968,1713862232077,-6706.82581345,0.0001151,2]
[323272969,1713862232090,-589.78257839,0.0001151,2]
[323272970,1713862232115,-935.10187046,0.0001151,2]
[323272971,1713862232125,-158.05660954,0.00011513,2]
[323272972,1713862232134,-158.05660954,0.00011568,2]
[323272973,1713862232143,-1000.0,0.00011592,2]
[323272974,1713862232153,-2500.0,0.00011592,2]
[323272975,1713862232162,-158.05660954,0.00011624,2]
[323272976,1713862232171,-150.0,0.00011644,2]
[323272977,1713862232180,-150.99,0.00011644,2]
[323272978,1713862232189,-5886.89,0.00011644,2]
[323272979,1713862232199,-311.66,0.00011644,2]
[323272980,1713862232208,-299.99,0.00011644,2]
[323272981,1713862232217,-150.99,0.00011644,2]
[323272982,1713862232226,-999.99,0.00011644,2]
[323272983,1713862232236,-499.99,0.00011644,2]
[323272984,1713862232245,-158.05660954,0.00011679,2]
[323272985,1713862232254,-759.3,0.00011687,2]
[323272986,1713862232264,-2745.3120214,0.00011688,2]
[323272987,1713862232273,-7268.88,0.00011688,2]
[323272988,1713862232283,-16085.42250544,0.00011689,2]
[323272989,1713862232313,-1070.44158,0.00011689,2]
[323272990,1713862232325,-372.88887261,0.00011689,2]
[323272991,1713862232337,-1709.14612512,0.00011689,2]
[323272992,1713862232349,-384.20256361,0.00011689,2]
[323273015,1713862237984,-15411.00338024,0.00011689,2]
[323273016,1713862237993,-620.87,0.00011689,2]
[323273017,1713862238002,-187.31490484,0.0001169,2]
[323273018,1713862238012,-1016.29,0.00011691,2]
[323273019,1713862238021,-1115.63,0.00011691,2]
[323273020,1713862238030,-500.0,0.00011691,2]
[323273021,1713862238039,-658.8,0.00011691,2]
[323273022,1713862238048,-500.0,0.00011691,2]
[323273023,1713862238057,-500.0,0.00011691,2]
[323273024,1713862238067,-500.0,0.00011691,2]
[323273025,1713862238076,-29242.32985401,0.00011691,2]
[323273026,1713862238086,-66085.0327,0.00011692,2]
[323273027,1713862238095,-73807.962,0.00011692,2]
[323273028,1713862238104,-500.0,0.00011693,2]
[323273029,1713862238114,-2140.35,0.00011731,2]
[323273030,1713862238123,-500.0,0.00011731,2]
[323273031,1713862238133,-500.0,0.00011731,2]
[323273032,1713862238142,-500.0,0.00011731,2]
[323273033,1713862238153,-1282.99,0.00011731,2]
[323273034,1713862238162,-4078.46,0.00011731,2]
[323273035,1713862238172,-500.0,0.00011731,2]
[323273036,1713862238181,-5418.32,0.00011731,2]
[323273037,1713862238191,-500.0,0.00011731,2]
[323273038,1713862238200,-500.0,0.00011731,2]
[323273039,1713862238210,-9104.31,0.00011731,2]
[323273040,1713862238219,-500.0,0.00011731,2]
[323273041,1713862238229,-1162.39,0.00011731,2]
[323273042,1713862238238,-1209.96,0.00011731,2]
[323273043,1713862238247,-500.0,0.00011731,2]
[323273044,1713862238257,-3436.03,0.00011731,2]
[323273045,1713862238266,-500.0,0.00011731,2]
[323273046,1713862238275,-500.0,0.00011731,2]
[323273047,1713862238285,-500.0,0.00011731,2]
[323273048,1713862238294,-6271.98,0.00011731,2]
[323273049,1713862238303,-500.0,0.00011731,2]
[323273050,1713862238313,-1722.77,0.00011731,2]
[323273051,1713862238322,-500.0,0.00011731,2]
[323273052,1713862238333,-500.0,0.00011731,2]
[323273083,1713862238590,-880.75,0.00011731,2]
[323273086,1713862238600,-500.0,0.00011732,2]
[323273089,1713862238609,-500.0,0.00011732,2]
[323273092,1713862238618,-557.88,0.00011732,2]
[323273094,1713862238627,-500.0,0.00011732,2]
[323273096,1713862238636,-592.49,0.00011732,2]
[323273098,1713862238645,-737.56,0.00011732,2]
[323273100,1713862238654,-500.0,0.00011732,2]
[323273102,1713862238663,-1017.86,0.00011732,2]
[323273104,1713862238672,-500.0,0.00011732,2]
[323273106,1713862238681,-501.34016465,0.00011732,2]
[323273108,1713862238690,-500.0,0.00011732,2]
[323273110,1713862238700,-503.58412415,0.00011732,2]
[323273112,1713862238709,-500.0,0.00011732,2]
[323273114,1713862238718,-502.92718545,0.00011732,2]
[323273115,1713862238726,-500.0,0.00011732,2]
[323273117,1713862238736,-500.0,0.00011732,2]
[323273119,1713862238746,-500.0,0.00011732,2]
[323273122,1713862238761,-500.0,0.00011732,2]
[323273124,1713862238770,-500.0,0.00011732,2]
[323273126,1713862238780,-500.0,0.00011732,2]
[323273128,1713862238790,-502.32250162,0.00011732,2]
[323273130,1713862238799,-502.03244005,0.00011732,2]
[323273132,1713862238808,-500.0,0.00011732,2]
[323273134,1713862238818,-500.0,0.00011732,2]
[323273136,1713862238828,-500.0,0.00011732,2]
[323273138,1713862238840,-500.0,0.00011732,2]
[323273140,1713862238848,-500.0,0.00011732,2]
[323273142,1713862238858,-500.0,0.00011732,2]
[323273144,1713862238867,-500.0,0.00011732,2]
[323273146,1713862238876,-502.95101655,0.00011732,2]
[323273148,1713862238885,-500.0,0.00011732,2]
[323273150,1713862238894,-1132.57,0.00011732,2]
[323273152,1713862238903,-448.79363045,0.00011732,2]
[323273154,1713862238913,-500.0,0.00011732,2]
[323273155,1713862238922,-500.0,0.00011732,2]
[323273157,1713862238931,-500.0,0.00011732,2]
[323273159,1713862238941,-500.0,0.00011732,2]
[323273162,1713862238951,-500.0,0.00011732,2]
[323273163,1713862238960,-500.0,0.00011732,2]
[323273165,1713862238969,-500.0,0.00011732,2]
[323273167,1713862238978,-500.0,0.00011732,2]
[323273169,1713862238987,-500.0,0.00011732,2]
[323273171,1713862238996,-500.0,0.00011732,2]
[323273173,1713862239005,-500.0,0.00011732,2]
[323273175,1713862239014,-500.0,0.00011732,2]
[323273177,1713862239024,-500.0,0.00011732,2]
[323273180,1713862239033,-500.0,0.00011732,2]
[323273182,1713862239046,-500.0,0.00011732,2]
[323273184,1713862239056,-500.0,0.00011732,2]
[323273186,1713862239065,-1198.62,0.00011732,2]
[323273188,1713862239076,-500.0,0.00011732,2]
[323273190,1713862239087,-500.0,0.00011732,2]
[323273192,1713862239096,-500.0,0.00011732,2]
[323273194,1713862239105,-500.0,0.00011732,2]
[323273196,1713862239114,-500.0,0.00011732,2]
[323273198,1713862239123,-500.0,0.00011732,2]
[323273200,1713862239132,-500.0,0.00011732,2]
[323273201,1713862239141,-500.0,0.00011732,2]
[323273202,1713862239150,-500.0,0.00011732,2]
[323273203,1713862239160,-500.0,0.00011732,2]
[323273204,1713862239169,-500.0,0.00011732,2]
[323273205,1713862239178,-500.0,0.00011732,2]
[323273206,1713862239187,-500.0,0.00011732,2]
[323273207,1713862239196,-500.0,0.00011732,2]
[323273208,1713862239205,-500.0,0.00011732,2]
[323273209,1713862239214,-500.0,0.00011732,2]
[323273210,1713862239223,-500.0,0.00011732,2]
[323273211,1713862239232,-500.0,0.00011732,2]
[323273212,1713862239241,-500.0,0.00011732,2]
[323273213,1713862239250,-500.0,0.00011732,2]
[323273214,1713862239259,-500.0,0.00011732,2]
[323273215,1713862239269,-500.0,0.00011732,2]
[323273216,1713862239278,-628.21,0.00011732,2]
[323273218,1713862239287,-500.0,0.00011732,2]
[323273220,1713862239297,-500.0,0.00011732,2]
[323273223,1713862239310,-500.0,0.00011732,2]
[323273225,1713862239320,-500.0,0.00011732,2]
[323273227,1713862239329,-500.0,0.00011732,2]
[323273229,1713862239340,-500.0,0.00011732,2]
[323273231,1713862239349,-500.0,0.00011732,2]
[323273233,1713862239358,-500.0,0.00011732,2]
[323273235,1713862239368,-500.0,0.00011732,2]
[323273237,1713862239378,-998.85,0.00011732,2]
[323273239,1713862239387,-572.36,0.00011732,2]
[323273241,1713862239396,-500.0,0.00011732,2]
[323273243,1713862239406,-500.0,0.00011732,2]
[323273245,1713862239415,-500.0,0.00011732,2]
[323273247,1713862239424,-500.0,0.00011732,2]
[323273249,1713862239434,-500.0,0.00011732,2]
[323273251,1713862239444,-500.0,0.00011732,2]
[323273253,1713862239453,-500.0,0.00011732,2]
[323273255,1713862239463,-500.0,0.00011732,2]
[323273257,1713862239472,-500.0,0.00011732,2]
[323273259,1713862239482,-500.0,0.00011732,2]
[323273262,1713862239491,-500.0,0.00011732,2]
[323273264,1713862239501,-500.0,0.00011732,2]
[323273266,1713862239510,-500.0,0.00011732,2]
[323273268,1713862239519,-718.43,0.00011732,2]
[323273270,1713862239528,-500.0,0.00011732,2]
[323273272,1713862239538,-618.92,0.00011732,2]
[323273274,1713862239547,-500.0,0.00011732,2]
[323273276,1713862239556,-501.25219496,0.00011732,2]
[323273278,1713862239565,-500.0,0.00011732,2]
[323273280,1713862239577,-500.0,0.00011732,2]
[323273282,1713862239586,-500.0,0.00011732,2]
[323273284,1713862239595,-500.0,0.00011732,2]
[323273286,1713862239604,-500.0,0.00011732,2]
[323273288,1713862239614,-500.0,0.00011732,2]
[323273290,1713862239623,-500.0,0.00011732,2]
[323273292,1713862239634,-500.0,0.00011732,2]
[323273294,1713862239643,-150.0,0.00011732,2]
[323273296,1713862239654,-500.0,0.00011732,2]
[323273298,1713862239664,-1052.7,0.00011732,2]
[323273300,1713862239673,-500.0,0.00011732,2]
[323273302,1713862239683,-500.0,0.00011732,2]
[323273304,1713862239692,-5000.0,0.00011732,2]
[323273306,1713862239702,-1309.39,0.00011732,2]
[323273309,1713862239712,-500.0,0.00011732,2]
[323273311,1713862239721,-288.81471377,0.00011732,2]
[323273313,1713862239731,-503.68,0.00011732,2]
[323273315,1713862239742,-500.0,0.00011732,2]
[323273317,1713862239753,-500.0,0.00011732,2]
[323273319,1713862239763,-500.0,0.00011732,2]
[323273321,1713862239773,-989.84,0.00011732,2]
[323273323,1713862239781,-500.0,0.00011732,2]
[323273325,1713862239793,-500.0,0.00011732,2]
[323273327,1713862239802,-632.08477396,0.00011732,2]
[323273329,1713862239811,-208.65042021,0.00011732,2]
[323273331,1713862239822,-1123.38,0.00011732,2]
[323273333,1713862239831,-1067.09,0.00011732,2]
[323273335,1713862239843,-500.0,0.00011732,2]
[323273337,1713862239852,-500.0,0.00011732,2]
[323273340,1713862239862,-500.0,0.00011732,2]
[323273342,1713862239871,-500.0,0.00011732,2]
[323273344,1713862239882,-500.0,0.00011732,2]
[323273346,1713862239891,-500.0,0.00011732,2]
[323273348,1713862239901,-500.0,0.00011732,2]
[323273349,1713862239910,-500.0,0.00011732,2]
[323273351,1713862239919,-500.0,0.00011732,2]
[323273353,1713862239930,-630.60210235,0.00011732,2]
[323273356,1713862239940,-644.23230113,0.00011732,2]
[323273358,1713862239949,-500.0,0.00011732,2]
[323273360,1713862239959,-500.0,0.00011732,2]
[323273362,1713862239968,-500.0,0.00011732,2]
[323273364,1713862239978,-500.0,0.00011732,2]
[323273366,1713862239987,-500.0,0.00011732,2]
[323273368,1713862239996,-500.0,0.00011732,2]
[323273370,1713862240006,-500.0,0.00011732,2]
[323273372,1713862240016,-904.53,0.00011732,2]
[323273374,1713862240025,-500.0,0.00011732,2]
[323273376,1713862240035,-500.0,0.00011732,2]
[323273378,1713862240044,-340.32406159,0.00011732,2]
[323273380,1713862240054,-577.95,0.00011732,2]
[323273382,1713862240064,-630.12768889,0.00011732,2]
[323273384,1713862240073,-500.0,0.00011732,2]
[323273386,1713862240082,-695.68,0.00011732,2]
[323273388,1713862240093,-500.0,0.00011732,2]
[323273390,1713862240105,-269.46865366,0.00011732,2]
[323273392,1713862240114,-500.0,0.00011732,2]
[323273395,1713862240132,-500.0,0.00011732,2]
[323273398,1713862240144,-967.93,0.00011732,2]
[323273400,1713862240154,-500.0,0.00011732,2]
[323273402,1713862240163,-311.27105515,0.00011732,2]
[323273404,1713862240173,-500.0,0.00011732,2]
[323273406,1713862240183,-466.8761274,0.00011732,2]
[323273408,1713862240193,-14495.15,0.00011733,2]
[323273410,1713862240202,-3847.56,0.00011733,2]
[323273412,1713862240212,-500.0,0.00011733,2]
[323273414,1713862240221,-2723.02,0.00011733,2]
[323273416,1713862240231,-895.41,0.00011733,2]
[323273418,1713862240240,-500.0,0.00011733,2]
[323273420,1713862240250,-352.40420208,0.00011733,2]
[323273422,1713862240259,-500.0,0.00011733,2]
[323273425,1713862240269,-1380.88,0.00011733,2]
[323273427,1713862240279,-500.0,0.00011733,2]
[323273429,1713862240289,-847.4,0.00011733,2]
[323273431,1713862240298,-500.0,0.00011733,2]
[323273433,1713862240308,-5917.6,0.00011733,2]
[323273435,1713862240317,-500.0,0.00011733,2]
[323273437,1713862240327,-835.73,0.00011733,2]
[323273439,1713862240338,-500.0,0.00011733,2]
[323273441,1713862240347,-2590.64,0.00011733,2]
[323273443,1713862240357,-750.36,0.00011733,2]
[323273445,1713862240366,-500.0,0.00011733,2]
[323273447,1713862240376,-4664.41,0.00011733,2]
[323273449,1713862240385,-500.0,0.00011733,2]
[323273451,1713862240395,-1023.5,0.00011733,2]
[323273453,1713862240405,-788.6,0.00011733,2]
[323273456,1713862240415,-2442.31,0.00011733,2]
[323273458,1713862240424,-500.0,0.00011733,2]
[323273460,1713862240434,-500.0,0.00011733,2]
[323273462,1713862240443,-9840.88,0.00011733,2]
[323273464,1713862240452,-500.0,0.00011733,2]
[323273466,1713862240462,-1595.14,0.00011733,2]
[323273468,1713862240471,-534.48,0.00011733,2]
[323273470,1713862240482,-500.0,0.00011733,2]
[323273472,1713862240491,-500.0,0.00011733,2]
[323273474,1713862240501,-1091.44,0.00011733,2]
[323273476,1713862240510,-26857.23,0.00011733,2]
[323273478,1713862240520,-3786.28,0.00011733,2]
[323273480,1713862240529,-500.0,0.00011733,2]
[323273482,1713862240539,-561.58,0.00011733,2]
[323273484,1713862240549,-158.05660954,0.00011734,2]
[323273486,1713862240558,-210.24604904,0.00011779,2]
[323273488,1713862240567,-158.05660954,0.00011789,2]
[323273490,1713862240576,-500.0,0.00011789,2]
[323273492,1713862240586,-502.86077699,0.00011789,2]
[323273494,1713862240595,-505.22160594,0.00011789,2]
[323273496,1713862240604,-500.0,0.00011789,2]
[323273498,1713862240614,-504.2192653,0.00011789,2]
[323273500,1713862240623,-504.93769746,0.00011789,2]
[323273502,1713862240633,-503.34025107,0.00011789,2]
[323273504,1713862240642,-502.13160845,0.00011789,2]
[323273506,1713862240653,-500.0,0.00011789,2]
[323273508,1713862240662,-500.0,0.00011789,2]
[323273511,1713862240673,-500.0,0.00011789,2]
[323273513,1713862240682,-503.95102487,0.00011789,2]
[323273515,1713862240692,-504.31228408,0.00011789,2]
[323273516,1713862240701,-1608.57,0.00011789,2]
[323273519,1713862240711,-500.0,0.00011789,2]
[323273521,1713862240721,-915.76,0.00011789,2]
[323273523,1713862240730,-500.0,0.00011789,2]
[323273525,1713862240739,-502.62509489,0.00011789,2]
[323273527,1713862240752,-1032.84,0.00011789,2]
[323273529,1713862240760,-500.0,0.00011789,2]
[323273531,1713862240770,-500.0,0.00011789,2]
[323273533,1713862240779,-945.25,0.00011789,2]
[323273535,1713862240789,-500.0,0.00011789,2]
[323273537,1713862240798,-500.0,0.00011789,2]
[323273539,1713862240810,-586.08214952,0.00011789,2]
[323273541,1713862240820,-500.0,0.00011789,2]
[323273543,1713862240831,-500.0,0.00011789,2]
[323273545,1713862240841,-500.0,0.00011789,2]
[323273547,1713862240850,-500.0,0.00011789,2]
[323273549,1713862240860,-500.0,0.00011789,2]
[323273551,1713862240869,-500.0,0.00011789,2]
[323273553,1713862240879,-1002.82,0.00011789,2]
[323273555,1713862240889,-500.0,0.00011789,2]
[323273558,1713862240900,-500.0,0.00011789,2]
[323273560,1713862240911,-858.32,0.00011789,2]
[323273562,1713862240921,-500.0,0.00011789,2]
[323273564,1713862240930,-500.0,0.00011789,2]
[323273566,1713862240941,-500.0,0.00011789,2]
[323273568,1713862240950,-177.9055747,0.00011789,2]
[323273570,1713862240960,-500.0,0.00011789,2]
[323273572,1713862240971,-514.82,0.00011789,2]
[323273574,1713862240981,-500.0,0.00011789,2]
[323273576,1713862240991,-500.0,0.00011789,2]
[323273578,1713862241001,-500.0,0.00011789,2]
[323273580,1713862241011,-500.0,0.00011789,2]
[323273582,1713862241020,-735.12,0.00011789,2]
[323273584,1713862241030,-500.0,0.00011789,2]
[323273586,1713862241041,-500.0,0.00011789,2]
[323273588,1713862241050,-500.0,0.00011789,2]
[323273590,1713862241060,-500.0,0.00011789,2]
[323273592,1713862241070,-657.22,0.00011789,2]
[323273594,1713862241080,-646.6962572,0.00011789,2]
[323273596,1713862241090,-500.0,0.00011789,2]
[323273598,1713862241100,-525.87,0.00011789,2]
[323273600,1713862241109,-1472.74,0.00011789,2]
[323273602,1713862241119,-503.32350494,0.00011789,2]
[323273603,1713862241129,-500.0,0.00011789,2]
[323273604,1713862241138,-500.0,0.00011789,2]
[323273605,1713862241148,-503.13657075,0.00011789,2]
[323273606,1713862241158,-502.56897386,0.00011789,2]
[323273607,1713862241168,-504.09832341,0.00011789,2]
[323273608,1713862241177,-500.0,0.00011789,2]
[323273609,1713862241187,-503.25539977,0.00011789,2]
[323273610,1713862241196,-500.0,0.00011789,2]
[323273611,1713862241206,-500.0,0.00011789,2]
[323273612,1713862241215,-500.0,0.00011789,2]
[323273613,1713862241225,-304.67845089,0.00011789,2]
[323273614,1713862241234,-150.0,0.00011789,2]
[323273615,1713862241243,-500.0,0.00011789,2]
[323273616,1713862241253,-500.0,0.00011789,2]
[323273617,1713862241262,-501.98009169,0.00011789,2]
[323273618,1713862241272,-500.0,0.00011789,2]
[323273619,1713862241281,-500.0,0.00011789,2]
[323273620,1713862241291,-500.0,0.00011789,2]
[323273621,1713862241301,-500.0,0.00011789,2]